bitfinex/quotes_BTCUSD_20260103
["timestamp","ask_amount","ask_price","bid_price","bid_amount"]
[1767426652094,0.04853129,89535.0,89529.0,0.02236956]
[1767426652294,0.04853129,89533.0,89528.0,0.06704824]
[1767426652475,0.04853129,89533.0,89529.0,0.01116956]
[1767426652693,0.01116856,89537.0,89530.0,0.01116944]
[1767426653287,0.01116881,89535.0,89530.0,0.01116944]
[1767426653493,0.01116881,89535.0,89529.0,0.01116956]
[1767426653633,0.01116881,89535.0,89530.0,0.01116944]
[1767426653834,0.01116869,89536.0,89530.0,0.01116944]
[1767426654714,0.01116856,89537.0,89532.0,0.01116919]
[1767426654846,0.01116856,89537.0,89531.0,0.06701584]
[1767426655047,0.01116856,89537.0,89531.0,0.05631679]
[1767426655298,0.01116881,89535.0,89531.0,0.04514748]
[1767426655656,0.01116894,89534.0,89531.0,0.04514748]
[1767426656096,0.01116894,89534.0,89528.0,0.0112]
[1767426656097,0.01116906,89533.0,89528.0,0.0112]
[1767426656248,0.000999,89531.0,89528.0,0.0112]
[1767426656451,0.01116931,89531.0,89528.0,0.0112]
[1767426657096,0.000999,89528.0,89527.0,0.0112]
[1767426657712,0.01116956,89529.0,89527.0,0.0112]
[1767426657938,0.01116968,89528.0,89525.0,0.04514748]
[1767426658143,0.01116993,89526.0,89523.0,0.04514748]
[1767426658896,0.01116981,89527.0,89523.0,0.04514748]
[1767426659135,0.01116968,89528.0,89523.0,0.04514748]
[1767426659338,0.01116956,89529.0,89524.0,0.05631766]
[1767426659752,0.06701633,89531.0,89524.0,0.05631766]
[1767426659753,0.01112738,89530.0,89525.0,0.01117006]
[1767426660285,0.01116956,89529.0,89524.0,0.05631766]
[1767426660433,0.06701633,89531.0,89524.0,0.05631766]
[1767426660434,0.01116931,89531.0,89526.0,0.05718931]
[1767426660641,0.01116919,89532.0,89526.0,0.05718931]
[1767426661425,0.01116956,89529.0,89526.0,0.04502038]
[1767426661625,0.01117056,89521.0,89516.0,0.04601938]
[1767426661855,0.05585213,89523.0,89521.0,0.000999]
[1767426662036,0.01117018,89524.0,89521.0,0.000999]
[1767426662203,0.01117018,89524.0,89518.0,0.04601938]
[1767426662204,0.01117043,89522.0,89518.0,0.04601938]
[1767426662401,0.01117031,89523.0,89518.0,0.04601938]
[1767426662834,0.01117056,89521.0,89518.0,0.04601938]
[1767426663158,0.01117018,89524.0,89521.0,0.000999]
[1767426663458,0.01117043,89522.0,89518.0,0.04601938]
[1767426663663,0.01117031,89523.0,89518.0,0.05719031]
[1767426663844,0.01117018,89524.0,89520.0,0.04601938]
[1767426664241,0.01117031,89523.0,89520.0,0.04601938]
[1767426664430,0.01117018,89524.0,89520.0,0.04601938]
[1767426666311,0.01117031,89523.0,89520.0,0.04601938]
[1767426666473,0.01117018,89524.0,89520.0,0.04601938]
[1767426667082,0.06701861,89528.0,89524.0,0.000999]
[1767426667538,0.01116981,89527.0,89524.0,0.000999]
[1767426667741,0.01116881,89535.0,89528.0,0.01116968]
[1767426667946,0.01116881,89535.0,89530.0,0.01116944]
[1767426668695,0.01116819,89540.0,89534.0,0.01116894]
[1767426668933,0.01121638,89540.0,89538.0,0.04601938]
[1767426669132,0.01116781,89543.0,89538.0,0.04601938]
[1767426669446,0.01116806,89541.0,89538.0,0.04601938]
[1767426670045,0.01116794,89542.0,89538.0,0.04601938]
[1767426670248,0.01116806,89541.0,89538.0,0.04601938]
[1767426671215,0.01116794,89542.0,89538.0,0.04601938]
[1767426672132,0.0112,89546.0,89542.0,0.04601938]
[1767426672346,0.01116756,89545.0,89542.0,0.04701838]
[1767426672667,0.01116744,89546.0,89540.0,0.01116819]
[1767426672961,0.01116694,89550.0,89544.0,0.01116769]
[1767426673179,0.01116669,89552.0,89545.0,0.05718694]
[1767426673670,0.01116632,89555.0,89548.0,0.05718657]
[1767426673867,0.01121452,89555.0,89549.0,0.04601938]
[1767426674090,0.01116644,89554.0,89549.0,0.04601938]
[1767426674245,0.01116657,89553.0,89549.0,0.04601938]
[1767426674778,0.01116669,89552.0,89549.0,0.04601938]
[1767426675758,0.01116644,89554.0,89549.0,0.04601938]
[1767426675951,0.01116669,89552.0,89549.0,0.04601938]
[1767426677417,0.0558341,89551.0,89549.0,0.04601938]
[1767426680842,0.01116744,89546.0,89544.0,0.04601938]
[1767426681037,0.01016844,89546.0,89544.0,0.04601938]
[1767426681602,0.01116731,89547.0,89544.0,0.04601938]
[1767426684579,0.01116719,89548.0,89544.0,0.04601938]
[1767426684851,0.01112467,89548.0,89544.0,0.04601938]
[1767426685478,0.01112346,89547.0,89544.0,0.04601938]
[1767426685686,0.01116731,89547.0,89544.0,0.04601938]
[1767426687679,0.01112517,89547.0,89544.0,0.04601938]
[1767426690277,0.06699982,89553.0,89545.0,0.01116756]
[1767426691079,0.01116694,89550.0,89545.0,0.06053218]
[1767426691273,0.01116682,89551.0,89546.0,0.01116744]
[1767426691477,0.01116694,89550.0,89545.0,0.06053218]
[1767426691856,0.01116682,89551.0,89545.0,0.06053218]
[1767426692225,0.01116694,89550.0,89545.0,0.04936462]
[1767426693802,0.01116707,89549.0,89545.0,0.04936462]
[1767426694045,0.01116719,89548.0,89545.0,0.04936462]
[1767426696082,0.01116707,89549.0,89545.0,0.04936462]
[1767426696448,0.01116707,89549.0,89543.0,0.02236781]
[1767426696449,0.05583789,89545.0,89543.0,0.06056462]
[1767426696649,0.05583789,89545.0,89520.0,0.27545151]
[1767426696650,0.01116869,89536.0,89520.0,0.27545151]
[1767426696871,0.01116931,89531.0,89521.0,0.06705281]
[1767426697080,0.01116956,89529.0,89523.0,0.01117031]
[1767426697279,0.01116931,89531.0,89524.0,0.01117018]
[1767426697801,0.01116919,89532.0,89526.0,0.01116993]
[1767426698005,0.01116919,89532.0,89527.0,0.01116981]
[1767426698189,0.01116919,89532.0,89528.0,0.0112]
[1767426699838,0.01116931,89531.0,89528.0,0.0112]
[1767426700291,0.01116919,89532.0,89528.0,0.0112]
[1767426700486,0.01116931,89531.0,89528.0,0.0112]
[1767426700674,0.0670164,89531.0,89528.0,0.0112]
[1767426700874,0.01116931,89531.0,89528.0,0.010201]
[1767426701593,0.06701632,89531.0,89528.0,0.010201]
[1767426702763,0.05584782,89529.0,89528.0,0.010201]
[1767426703202,0.05584764,89530.0,89528.0,0.010201]
[1767426705786,0.05584764,89530.0,89522.0,0.01117043]
[1767426705787,0.06701708,89530.0,89521.0,0.01117056]
[1767426705989,0.06701708,89530.0,89522.0,0.0112]
[1767426705990,0.06701788,89529.0,89522.0,0.0112]
[1767426706187,0.01116968,89528.0,89522.0,0.02237043]
[1767426706391,0.01116993,89526.0,89522.0,0.0112]
[1767426706564,0.22338087,89534.0,89516.0,0.21960083]
[1767426706565,0.01117056,89521.0,89516.0,0.21960083]
[1767426706764,0.01117031,89523.0,89521.0,0.000999]
[1767426706765,0.01117043,89522.0,89521.0,0.000999]
[1767426706967,0.01117056,89521.0,89517.0,0.0112]
[1767426707169,0.01117068,89520.0,89518.0,0.0112]
[1767426707376,0.01117068,89520.0,89518.0,0.01155999]
[1767426707598,0.01117068,89520.0,89519.0,0.0112]
[1767426708171,0.10491557,89519.0,89518.0,1e-08]
[1767426708937,0.05585406,89519.0,89518.0,1e-08]
[1767426710833,0.10491557,89519.0,89518.0,1e-08]
[1767426711175,0.05585406,89519.0,89518.0,1e-08]
[1767426711385,0.05585604,89516.0,89514.0,0.01115636]
[1767426711583,0.05585604,89516.0,89514.0,0.01120455]
[1767426712717,0.06702644,89517.0,89514.0,0.01120455]
[1767426712869,0.05585656,89515.0,89514.0,0.01120455]
[1767426713382,0.06702644,89517.0,89515.0,0.000999]
[1767426713578,0.06702644,89517.0,89514.0,0.01120455]
[1767426714555,0.06602744,89517.0,89514.0,0.01120455]
[1767426716837,0.06602744,89517.0,89514.0,0.01116091]
[1767426717516,0.01017206,89517.0,89514.0,0.01116091]
[1767426717925,0.01017206,89517.0,89509.0,0.01117206]
[1767426717926,0.01117218,89508.0,89503.0,0.0113728]
[1767426718086,9.237e-05,89508.0,89506.0,0.0112]
[1767426720712,0.06702683,89517.0,89509.0,0.01117206]
[1767426720913,0.06702683,89517.0,89510.0,0.01117193]
[1767426721138,0.01117118,89516.0,89510.0,0.01117193]
[1767426721858,0.01117131,89515.0,89509.0,0.01127993]
[1767426722055,0.01117143,89514.0,89509.0,0.00010787]
[1767426722411,0.01117168,89512.0,89509.0,0.00010787]
[1767426722609,0.06703055,89512.0,89509.0,8.7e-07]
[1767426723250,0.01117156,89513.0,89509.0,8.7e-07]
[1767426723689,0.01117156,89513.0,89510.0,0.0112]
[1767426724414,0.01117143,89514.0,89510.0,0.0112]
[1767426724568,0.01117081,89519.0,89514.0,0.000107]
[1767426724968,0.01117106,89517.0,89510.0,0.06821632]
[1767426725308,0.01117118,89516.0,89511.0,0.01117181]
[1767426725466,0.01117118,89516.0,89510.0,0.02237193]
[1767426725672,0.01117106,89517.0,89516.0,0.000107]
[1767426726132,0.01117118,89516.0,89511.0,0.01117181]
[1767426726456,0.01117118,89516.0,89510.0,0.02237193]
[1767426726737,0.01117131,89515.0,89510.0,0.02237193]
[1767426726941,0.01117131,89515.0,89510.0,0.0112]
[1767426727243,0.01117156,89513.0,89510.0,0.0112]
[1767426727541,0.01117156,89513.0,89510.0,0.010308]
[1767426727703,0.01117156,89513.0,89511.0,0.0112]
[1767426728129,0.01117106,89517.0,89513.0,0.000892]
[1767426728323,0.05585518,89518.0,89513.0,0.000892]
[1767426728324,0.01117093,89518.0,89513.0,0.00084837]
[1767426728491,0.01116993,89526.0,89519.0,0.01117081]
[1767426728694,0.06701488,89533.0,89519.0,0.04584439]
[1767426728935,0.01116981,89527.0,89521.0,0.01117056]
[1767426729110,0.06701646,89531.0,89521.0,0.01117056]
[1767426729443,0.01116981,89527.0,89521.0,0.01117056]
[1767426729671,0.05929205,89535.0,89528.0,0.01116968]
[1767426729870,0.01116906,89533.0,89527.0,0.000849]
[1767426730174,0.05929205,89535.0,89527.0,0.000849]
[1767426730175,0.01116881,89535.0,89530.0,0.01116944]
[1767426730356,0.00015,89530.0,89529.0,0.01116956]
[1767426730716,0.01116881,89535.0,89529.0,0.01116956]
[1767426730918,0.01116869,89536.0,89530.0,0.01116944]
[1767426731317,0.01116869,89536.0,89531.0,0.01116931]
[1767426731545,0.01116869,89536.0,89530.0,0.01116944]
[1767426731955,0.01116881,89535.0,89529.0,0.01116956]
[1767426732162,0.01116869,89536.0,89530.0,0.01116944]
[1767426732464,0.01116869,89536.0,89531.0,0.01116931]
[1767426732624,0.06701189,89537.0,89532.0,0.01116919]
[1767426732625,0.01116856,89537.0,89532.0,0.01116919]
[1767426732829,0.01116856,89537.0,89531.0,0.00905999]
[1767426733048,0.01116869,89536.0,89531.0,0.00905999]
[1767426733280,0.01116869,89536.0,89530.0,0.01116944]
[1767426733655,0.01116869,89536.0,89531.0,0.01116931]
[1767426733855,0.01116881,89535.0,89530.0,0.01116944]
[1767426734068,0.01116881,89535.0,89529.0,0.01116956]
[1767426734272,0.01116881,89535.0,89528.0,0.02236968]
[1767426734475,0.01116881,89535.0,89529.0,0.01116956]
[1767426734678,0.01116894,89534.0,89529.0,0.01116956]
[1767426735262,0.01116869,89536.0,89530.0,0.01116944]
[1767426735561,0.01116869,89536.0,89531.0,0.01116931]
[1767426735761,0.1151327,89540.0,89532.0,0.01116919]
[1767426735928,0.01116819,89540.0,89536.0,0.000999]
[1767426736130,0.06700747,89543.0,89536.0,0.000999]
[1767426736331,0.01136794,89542.0,89536.0,0.01116869]
[1767426736550,0.0002,89542.0,89537.0,0.01116856]
[1767426737211,0.00055994,89542.0,89538.0,0.01116844]
[1767426737355,0.00035994,89542.0,89539.0,0.01116831]
[1767426738195,0.00035994,89542.0,89541.0,0.05584034]
[1767426738853,1e-08,89542.0,89541.0,0.05584034]
[1767426740089,1e-08,89542.0,89541.0,0.10168473]
[1767426741046,0.01116669,89552.0,89547.0,0.01116731]
[1767426741254,0.01116682,89551.0,89546.0,0.01116744]
[1767426741658,0.01116682,89551.0,89544.0,0.01116769]
[1767426741856,0.01123905,89552.0,89546.0,0.01116744]
[1767426741857,7.236e-05,89552.0,89546.0,0.01116744]
[1767426742022,7.236e-05,89552.0,89547.0,0.01116731]
[1767426742765,0.01116682,89551.0,89545.0,0.01116756]
[1767426742966,7.236e-05,89552.0,89546.0,0.05583722]
[1767426743172,0.01123905,89552.0,89546.0,0.01116744]
[1767426743386,7.236e-05,89552.0,89548.0,0.01116719]
[1767426743670,0.01116682,89551.0,89545.0,0.06700478]
[1767426743879,7.236e-05,89552.0,89547.0,0.01116731]
[1767426744651,7.236e-05,89552.0,89548.0,0.01116719]
[1767426744839,7.236e-05,89552.0,89549.0,0.01116707]
[1767426745042,7.236e-05,89552.0,89547.0,0.01116731]
[1767426745227,0.01123905,89552.0,89546.0,0.01116744]
[1767426745426,0.01116682,89551.0,89546.0,0.01116744]
[1767426745725,0.01123905,89552.0,89546.0,0.01116744]
[1767426745926,7.236e-05,89552.0,89547.0,0.01116731]
[1767426746202,7.236e-05,89552.0,89546.0,0.01116744]
[1767426746376,0.01116682,89551.0,89546.0,0.01116744]
[1767426746554,7.236e-05,89552.0,89547.0,0.01116731]
[1767426746758,0.01123905,89552.0,89546.0,0.01116744]
[1767426746954,0.01116694,89550.0,89545.0,0.01116756]
[1767426747273,0.01123905,89552.0,89546.0,0.01116744]
[1767426747476,0.01123905,89552.0,89547.0,0.01116731]
[1767426747682,0.01123905,89552.0,89546.0,0.01116744]
[1767426747860,0.01123905,89552.0,89547.0,0.01116731]
[1767426748073,0.01116682,89551.0,89546.0,0.01116744]
[1767426748473,7.236e-05,89552.0,89549.0,0.01116707]
[1767426748674,0.0111652,89564.0,89549.0,0.01116707]
[1767426748675,0.06699245,89563.0,89549.0,0.04584439]
[1767426749013,0.06699245,89563.0,89553.0,0.01116657]
[1767426749014,0.01116582,89559.0,89553.0,0.01116657]
[1767426749362,0.06699378,89561.0,89555.0,0.01116632]
[1767426749363,0.01116569,89560.0,89555.0,0.01116632]
[1767426749761,0.01116557,89561.0,89555.0,0.01116632]
[1767426750019,0.05958469,89558.0,89553.0,0.01116657]
[1767426750219,0.04841875,89558.0,89553.0,0.01116657]
[1767426750432,0.05958444,89560.0,89555.0,0.01116632]
[1767426750717,0.04841875,89560.0,89555.0,0.01116632]
[1767426751215,0.01116532,89563.0,89556.0,0.01116619]
[1767426751377,0.05958382,89565.0,89557.0,0.01116607]
[1767426751576,0.04841875,89565.0,89559.0,0.01116582]
[1767426751803,0.01116482,89567.0,89559.0,0.01116582]
[1767426751804,8e-07,89562.0,89560.0,0.05582801]
[1767426751982,8e-07,89562.0,89559.0,0.06699439]
[1767426752380,8e-07,89562.0,89555.0,0.01116632]
[1767426752586,8e-07,89562.0,89559.0,0.01116582]
[1767426752809,8e-07,89562.0,89558.0,0.01116594]
[1767426754156,8e-07,89562.0,89559.0,0.06699493]
[1767426754288,8e-07,89562.0,89560.0,0.05582805]
[1767426756036,8e-07,89562.0,89559.0,0.07819493]
[1767426757175,0.01116624,89562.0,89559.0,0.0112]
[1767426757375,8e-07,89562.0,89559.0,0.0112]
[1767426758630,8e-07,89562.0,89559.0,0.02236582]
[1767426758980,8e-07,89562.0,89559.0,0.02232218]
[1767426759586,8e-07,89562.0,89560.0,0.05582849]
[1767426760498,8e-07,89562.0,89559.0,0.0781509]
[1767426761820,8e-07,89562.0,89560.0,0.05582803]
[1767426762962,0.04841875,89574.0,89568.0,0.01106474]
[1767426763167,0.04841875,89574.0,89568.0,1e-08]
[1767426763661,0.01116407,89573.0,89568.0,0.01116471]
[1767426763870,0.0111642,89572.0,89568.0,1e-08]
[1767426764070,0.0111642,89572.0,89563.0,0.05582621]
[1767426764855,0.01116407,89573.0,89566.0,0.05582475]
[1767426765098,0.01116407,89573.0,89568.0,0.0111647]
[1767426765407,0.01116395,89574.0,89568.0,0.0111647]
[1767426765708,0.01116407,89573.0,89567.0,0.01116482]
[1767426766095,0.0111642,89572.0,89567.0,0.01116482]
[1767426766294,0.0595827,89574.0,89567.0,0.01116482]
[1767426766693,0.01116407,89573.0,89567.0,0.01116482]
[1767426766905,0.0111642,89572.0,89567.0,0.01116482]
[1767426767683,0.01116407,89573.0,89567.0,0.01116482]
[1767426767883,0.0111642,89572.0,89567.0,0.01116482]
[1767426768098,0.01116407,89573.0,89567.0,0.01116482]
[1767426768305,0.01116407,89573.0,89568.0,0.0111647]
[1767426768514,0.01116407,89573.0,89567.0,0.01116482]
[1767426769373,0.01116395,89574.0,89568.0,0.0111647]
[1767426769545,0.01116382,89575.0,89568.0,0.0111647]
[1767426769546,0.01116382,89575.0,89569.0,0.01116457]
[1767426769745,0.0111637,89576.0,89569.0,0.01116457]
[1767426770131,0.01116382,89575.0,89570.0,0.01116445]
[1767426770295,0.01116395,89574.0,89567.0,0.01116482]
[1767426770495,0.0112,89578.0,89553.0,0.01116657]
[1767426770496,0.01116532,89563.0,89553.0,0.01116657]
[1767426770703,0.04841875,89568.0,89548.0,0.04732681]
[1767426770704,0.01116594,89558.0,89554.0,0.0112]
[1767426771058,0.01116594,89558.0,89555.0,0.0112]
[1767426771216,0.06699467,89560.0,89558.0,0.000999]
[1767426771418,0.05582997,89558.0,89556.0,0.0112]
[1767426771626,0.01116582,89559.0,89550.0,0.01116694]
[1767426771851,0.01116594,89558.0,89553.0,0.02236657]
[1767426772023,0.01116594,89558.0,89553.0,0.0112]
[1767426772255,4.4e-05,89553.0,89552.0,0.0112]
[1767426772668,0.01116594,89558.0,89552.0,0.02236669]
[1767426772843,0.01116582,89559.0,89552.0,0.02236669]
[1767426773283,0.05582974,89558.0,89552.0,0.011156]
[1767426773522,0.05958482,89557.0,89552.0,0.011156]
[1767426773998,0.05958482,89557.0,89552.0,0.01116669]
[1767426774140,0.01116619,89556.0,89546.0,0.01116744]
[1767426774342,0.01116707,89549.0,89547.0,0.0112]
[1767426774549,0.01116719,89548.0,89547.0,7.236e-05]
[1767426774762,0.01116719,89548.0,89547.0,0.01127236]
[1767426775706,0.01116707,89549.0,89548.0,0.000999]
[1767426776005,0.01116707,89549.0,89547.0,0.01122874]
[1767426776152,0.06700219,89550.0,89547.0,0.01122874]
[1767426776499,0.01116694,89550.0,89547.0,0.01122874]
[1767426778412,0.01116694,89550.0,89547.0,2.874e-05]
[1767426778644,0.01116694,89550.0,89548.0,0.0112]
[1767426780303,0.06700219,89550.0,89548.0,0.0112]
[1767426780756,0.04596649,89549.0,89547.0,2.874e-05]
[1767426780929,0.01116769,89544.0,89538.0,0.01116844]
[1767426781127,0.22334087,89550.0,89531.0,0.04858696]
[1767426781327,0.22334087,89550.0,89532.0,0.11852253]
[1767426781328,0.04596649,89544.0,89532.0,0.11852253]
[1767426781567,0.01116881,89535.0,89532.0,0.11852253]
[1767426781723,0.04596649,89544.0,89535.0,0.000999]
[1767426781724,0.01116869,89536.0,89535.0,0.000999]
[1767426781917,0.01116869,89536.0,89532.0,0.11852253]
[1767426782150,0.01116831,89539.0,89534.0,0.01116894]
[1767426782555,0.01116831,89539.0,89533.0,0.01116906]
[1767426782556,0.01016944,89538.0,89533.0,0.01116906]
[1767426783137,0.01016944,89538.0,89532.0,0.12969172]
[1767426783348,0.01116831,89539.0,89533.0,0.01116906]
[1767426783562,0.01116831,89539.0,89534.0,0.01116894]
[1767426783991,0.01116831,89539.0,89533.0,0.01116906]
[1767426784200,0.01116844,89538.0,89533.0,0.01116906]
[1767426784636,0.01116869,89536.0,89532.0,0.11852253]
[1767426784862,0.01116856,89537.0,89532.0,0.11852253]
[1767426785498,0.01116869,89536.0,89532.0,0.11852253]
[1767426785728,0.01116869,89536.0,89532.0,0.0112]
[1767426786202,0.01116856,89537.0,89532.0,0.0112]
[1767426786613,0.01116856,89537.0,89532.0,0.02236919]
[1767426787028,0.01116831,89539.0,89532.0,0.02236919]
[1767426787251,0.01116844,89538.0,89532.0,0.02236919]
[1767426787676,0.01116844,89538.0,89533.0,0.0112]
[1767426787878,0.01116856,89537.0,89533.0,0.0112]
[1767426788840,0.01116869,89536.0,89533.0,0.0112]
[1767426790007,0.0670149,89533.0,89532.0,0.0112]
[1767426790209,0.05584637,89532.0,89530.0,0.0001498]
[1767426790399,0.01116906,89533.0,89532.0,0.000999]
[1767426790599,0.01116881,89535.0,89532.0,0.000999]
[1767426790834,0.01116881,89535.0,89531.0,0.0112]
[1767426790835,0.01116894,89534.0,89531.0,0.0112]
[1767426791247,0.01116894,89534.0,89530.0,0.0001498]
[1767426791426,0.05584648,89532.0,89530.0,0.0001498]
[1767426791628,0.05584648,89532.0,89530.0,0.0113498]
[1767426792496,0.05584648,89532.0,89522.0,0.01137043]
[1767426792497,0.01117006,89525.0,89522.0,0.0002]
[1767426792667,0.05585102,89524.0,89522.0,0.01175994]
[1767426792864,0.01117006,89525.0,89524.0,0.000999]
[1767426793579,0.01117006,89525.0,89522.0,0.01175994]
[1767426793849,0.06702083,89525.0,89522.0,0.01175994]
[1767426794232,0.05585156,89523.0,89522.0,1e-08]
[1767426794399,0.10181805,89523.0,89522.0,1e-08]
[1767426797144,0.0558578,89513.0,89511.0,0.0112]
[1767426797380,0.0558578,89513.0,89511.0,0.00010802]
[1767426797982,0.01117143,89514.0,89511.0,0.00010802]
[1767426798133,0.05585305,89521.0,89511.0,0.06713872]
[1767426798328,0.01117081,89519.0,89513.0,0.01117156]
[1767426798534,0.05585305,89521.0,89514.0,0.01117143]
[1767426798753,0.05585305,89521.0,89515.0,0.01117131]
[1767426798950,0.06702361,89521.0,89515.0,0.01117131]
[1767426799155,0.01117018,89524.0,89516.0,2.5e-07]
[1767426799357,0.01117043,89522.0,89517.0,0.01117106]
[1767426799556,0.01117043,89522.0,89516.0,0.01117143]
[1767426799960,0.00060965,89517.0,89516.0,0.01117143]
[1767426801778,0.00060965,89517.0,89516.0,2.5e-07]
[1767426802007,0.05646496,89517.0,89516.0,2.5e-07]
[1767426802923,0.00060965,89517.0,89516.0,2.5e-07]
[1767426813740,0.04596649,89524.0,89519.0,0.05585353]
[1767426813919,0.02236956,89529.0,89523.0,0.01117031]
[1767426814086,0.02236956,89529.0,89522.0,0.01117043]
[1767426814282,0.0670146,89533.0,89524.0,0.05993321]
[1767426814488,0.01116919,89532.0,89524.0,0.04876303]
[1767426814681,0.01116968,89528.0,89524.0,0.04876303]
[1767426814923,0.01116956,89529.0,89523.0,0.01117031]
[1767426815537,0.01116968,89528.0,89523.0,0.01117031]
[1767426815741,0.01116956,89529.0,89524.0,0.01117018]
[1767426816037,0.01116956,89529.0,89523.0,0.01117031]
[1767426816486,0.01116956,89529.0,89524.0,0.01117018]
[1767426816702,0.01116881,89535.0,89528.0,0.01116968]
[1767426816893,0.01116919,89532.0,89526.0,0.01116993]
[1767426817312,0.01116869,89536.0,89526.0,0.01116993]
[1767426817313,0.05584263,89538.0,89527.0,0.01116981]
[1767426817513,0.02236856,89537.0,89527.0,0.05993284]
[1767426817702,0.01116894,89534.0,89527.0,0.05993284]
[1767426817914,0.01116869,89536.0,89530.0,0.01116944]
[1767426818820,0.02236856,89537.0,89530.0,0.01116944]
[1767426819110,0.0112,89537.0,89533.0,0.01116906]
[1767426819458,0.01116856,89537.0,89532.0,0.01116919]
[1767426819994,0.02236844,89538.0,89533.0,0.01116906]
[1767426820783,0.01116869,89536.0,89530.0,0.01116944]
[1767426820977,0.02236844,89538.0,89532.0,0.01116919]
[1767426821184,0.01116856,89537.0,89531.0,0.01116931]
[1767426821520,0.01116869,89536.0,89530.0,0.01116944]
[1767426821723,0.01116869,89536.0,89531.0,0.01116931]
[1767426822020,0.01216831,89531.0,89526.0,0.01116993]
[1767426822218,0.000999,89531.0,89526.0,0.01116993]
[1767426822421,0.01216831,89531.0,89526.0,0.01116993]
[1767426822565,0.01116919,89532.0,89526.0,0.01116993]
[1767426822783,0.01116919,89532.0,89527.0,0.01116981]
[1767426823184,0.01116919,89532.0,89526.0,0.01116993]
[1767426823185,0.000999,89527.0,89526.0,0.01116993]
[1767426823587,0.01116906,89533.0,89528.0,0.01116968]
[1767426824006,0.01116906,89533.0,89527.0,0.01116981]
[1767426824212,0.01116906,89533.0,89528.0,0.01116968]
[1767426824415,0.000999,89528.0,89526.0,0.01116993]
[1767426824880,0.01116944,89530.0,89525.0,0.01117006]
[1767426825007,0.06701471,89533.0,89526.0,0.01116993]
[1767426825214,0.01116919,89532.0,89527.0,0.01116981]
[1767426825462,0.01116906,89533.0,89527.0,0.01116981]
[1767426825660,0.01116894,89534.0,89528.0,0.01116968]
[1767426825962,0.01116894,89534.0,89527.0,0.01116981]
[1767426825963,0.01116906,89533.0,89527.0,0.01116981]
[1767426826169,0.01116906,89533.0,89528.0,0.01116968]
[1767426826533,0.000999,89528.0,89526.0,0.01116993]
[1767426826952,0.01116931,89531.0,89525.0,0.06702028]
[1767426827159,0.01116931,89531.0,89526.0,0.01116993]
[1767426827570,0.01116919,89532.0,89526.0,0.01116993]
[1767426828418,0.01116919,89532.0,89527.0,0.01116981]
[1767426828625,0.01116919,89532.0,89526.0,0.01116993]
[1767426828832,0.01116881,89535.0,89528.0,0.01116968]
[1767426829047,0.01116906,89533.0,89528.0,0.01116968]
[1767426829249,0.01116881,89535.0,89529.0,0.01116956]
[1767426829455,0.01116881,89535.0,89530.0,0.01116944]
[1767426829791,0.01116881,89535.0,89528.0,0.01116968]
[1767426829991,0.01116968,89528.0,89522.0,0.01117043]
[1767426830217,0.05684663,89530.0,89522.0,0.01117043]
[1767426830378,0.01116956,89529.0,89523.0,0.02232669]
[1767426830578,0.01116944,89530.0,89524.0,0.01117018]
[1767426830797,0.01116931,89531.0,89525.0,0.01117006]
[1767426831000,0.01116919,89532.0,89525.0,0.01117006]
[1767426831325,0.01116931,89531.0,89525.0,0.01117006]
[1767426831558,0.01116919,89532.0,89526.0,0.01116993]
[1767426831763,0.01116931,89531.0,89525.0,0.01117006]
[1767426832168,0.01116931,89531.0,89524.0,0.01117018]
[1767426832310,0.01116931,89531.0,89526.0,0.01116993]
[1767426832758,0.01116944,89530.0,89524.0,0.01117018]
[1767426832946,0.01116931,89531.0,89525.0,0.01117006]
[1767426833423,0.01116931,89531.0,89526.0,0.01116993]
[1767426833610,0.01116944,89530.0,89524.0,0.01117018]
[1767426833810,0.000999,89526.0,89524.0,0.06702072]
[1767426834124,0.01116919,89532.0,89526.0,0.01116993]
[1767426834558,0.01116919,89532.0,89527.0,0.01116981]
[1767426834863,0.0558458,89533.0,89528.0,0.01116968]
[1767426834864,0.01116906,89533.0,89528.0,0.01116968]
[1767426835086,0.01116881,89535.0,89529.0,0.01116956]
[1767426835223,0.01116894,89534.0,89528.0,0.01116968]
[1767426835428,0.01116894,89534.0,89528.0,0.01112607]
[1767426835761,0.01116881,89535.0,89532.0,1e-08]
[1767426835966,0.05584516,89534.0,89532.0,1e-08]
[1767426836178,0.06701331,89535.0,89532.0,1e-08]
[1767426837694,0.01116881,89535.0,89532.0,1e-08]
[1767426838654,0.01116856,89537.0,89532.0,1e-08]
[1767426838857,0.01116881,89535.0,89532.0,1e-08]
[1767426839081,0.06701327,89535.0,89532.0,1e-08]
[1767426839901,0.01116881,89535.0,89532.0,1e-08]
[1767426840748,0.02256844,89538.0,89532.0,1e-08]
[1767426840871,0.02256844,89538.0,89533.0,0.01116906]
[1767426841066,0.01116856,89537.0,89532.0,0.0111692]
[1767426841268,0.02256844,89538.0,89532.0,0.0111692]
[1767426841753,0.01116794,89542.0,89533.0,0.06109402]
[1767426841911,0.01131749,89544.0,89537.0,0.01116856]
[1767426842117,0.01116781,89543.0,89537.0,0.01116856]
[1767426842551,0.01131749,89544.0,89537.0,0.01116856]
[1767426842785,0.01116794,89542.0,89537.0,0.01116856]
[1767426842995,0.0001498,89544.0,89541.0,0.01116806]
[1767426843648,0.0001498,89544.0,89540.0,0.01106823]
[1767426843851,0.0001498,89544.0,89541.0,0.0670084]
[1767426844037,0.01116607,89557.0,89549.0,0.0110671]
[1767426844235,0.01116607,89557.0,89549.0,0.06063235]
[1767426844236,0.01116619,89556.0,89549.0,0.06063235]
[1767426844480,0.00010788,89557.0,89552.0,0.06109165]
[1767426844879,0.00010788,89557.0,89552.0,0.04992496]
[1767426845087,0.00010788,89557.0,89552.0,0.06104804]
[1767426845286,0.00010788,89557.0,89553.0,0.01116657]
[1767426845648,0.00010788,89557.0,89554.0,0.01116644]
[1767426845847,0.0112,89561.0,89556.0,0.01116619]
[1767426846051,6.022e-05,89561.0,89558.0,0.04992496]
[1767426846308,6.022e-05,89561.0,89558.0,0.0610909]
[1767426846467,0.000999,89558.0,89555.0,0.01116632]
[1767426846701,6.022e-05,89561.0,89556.0,0.01116619]
[1767426847220,0.01116569,89560.0,89555.0,0.01116632]
[1767426847392,0.01122579,89561.0,89555.0,0.01116632]
[1767426847902,0.01122579,89561.0,89556.0,0.01116619]
[1767426849236,0.01122579,89561.0,89555.0,0.01116632]
[1767426849576,0.01122579,89561.0,89556.0,0.01116619]
[1767426849774,6.022e-05,89561.0,89556.0,0.01116619]
[1767426849976,6.022e-05,89561.0,89557.0,0.01116607]
[1767426850199,0.01122579,89561.0,89556.0,0.01116619]
[1767426850595,6.022e-05,89561.0,89556.0,0.01116619]
[1767426851941,0.01122579,89561.0,89556.0,0.01116619]
[1767426852598,6.022e-05,89561.0,89556.0,0.01116619]
[1767426853003,6.022e-05,89561.0,89557.0,0.01116607]
[1767426853380,6.022e-05,89561.0,89558.0,0.01116594]
[1767426853582,0.05582317,89569.0,89558.0,0.01116594]
[1767426853583,0.01116432,89571.0,89563.0,0.01106536]
[1767426853786,0.01116432,89571.0,89563.0,0.11454465]